[Event "World Senior chT-65 2019"]
[Site "Rhodes"]
[Date "2019.04.21"]
[Round "6.20"]
[White "Hedin, Gunnar"]
[Black "Boudre, Jean-Pierre"]
[Result "0-1"]
[ECO "A03"]
[WhiteElo "2195"]
[BlackElo "2246"]
[Annotator "NA"]
[PlyCount "72"]
[EventDate "2019.04.16"]
[EventType "team-tourn"]
[EventCountry "GRE"]
[SourceTitle "playchess.com"]
[Source "ChessBase"]
[SourceQuality "1"]
[WhiteTeam "Sweden"]
[BlackTeam "France"]
[WhiteTeamCountry "SWE"]
[BlackTeamCountry "FRA"]
[TimeControl "40/5400+30:1800+30"]

1. f4 {[%emt 0:00:00]} d5 {[%emt 0:00:26]} 2. Nf3 {[%emt 0:00:05]} Bg4 {[%emt 0:00:07]} 3. e3 {[%emt 0:00:26]} Nd7 {[%emt 0:00:32]} 4. h3 {[%emt 0:00:09]} Bxf3 {[%emt 0:00:07]} 5. Qxf3 {[%emt 0:00:03]} Ngf6 {[%emt 0:00:16]} 6. g4 {[%emt 0:01:48]} h6 {[%emt 0:09:06]} 7. Nc3 {[%emt 0:07:58]} e6 {[%emt 0:00:23]} 8. d3 {[%emt 0:27:52]} c6 {[%emt 0:22:41]} 9. e4 {[%emt 0:06:49]} Bb4 {[%emt 0:01:58]} 10. Bd2 {[%emt 0:05:39]} d4 {[%emt 0:16:45]} 11. Nd1 {[%emt 0:04:37]} Bxd2+ {[%emt 0:03:08]} 12. Kxd2 {[%emt 0:00:04]} Qa5+ {[%emt 0:01:25]} 13. Kc1 {[%emt 0:05:47]} O-O-O {[%emt 0:00:55]} 14. Qf2 {[%emt 0:07:30]} e5 {[%emt 0:03:51]} 15. f5 {[%emt 0:02:28]} Kb8 {[%emt 0:01:39]} 16. Qd2 {[%emt 0:02:00]} Qc7 {[%emt 0:02:38]} 17. Nf2 {[%emt 0:02:03]} Ne8 {[%emt 0:01:53]} 18. Be2 {[%emt 0:02:23]} Nd6 {[%emt 0:01:24]} 19. c4 {[%emt 0:07:05]} dxc3 {[%emt 0:00:34]} 20. bxc3 {[%emt 0:00:10]} Nc5 {[%emt 0:00:19]} 21. Qc2 {[%emt 0:00:27]} Qe7 {[%emt 0:04:13]} 22. h4 {[%emt 0:01:39]} Rd7 {[%emt 0:00:15]} 23. a4 {[%emt 0:00:33]} Rhd8 {[%emt 0:00:10]} 24. Rb1 {[%emt 0:04:04]} Nc8 {[%emt 0:03:26]} 25. a5 {[%emt 0:01:21]} Nd6 {[%emt 0:00:12]} 26. c4 {[%emt 0:02:09]} Ne8 {[%emt 0:03:57]} 27. Rh3 {[%emt 0:00:15]} Nc7 {[%emt 0:00:08]} 28. Nd1 {[%emt 0:00:28]} N7a6 {[%emt 0:00:28]} 29. Nc3 {[%emt 0:02:29]} Rd4 {[%emt 0:03:58]} 30. Rb2 {[%emt 0:00:55]} Qc7 {[%emt 0:00:10]} 31. Na4 {[%emt 0:02:12]} Qxa5 {[%emt 0:00:19]} 32. Nxc5 {[%emt 0:00:20]} Nxc5 {[%emt 0:00:13]} 33. Kb1 {[%emt 0:01:29]} Nxe4 {[%emt 0:05:53]} 34. dxe4 {[%emt 0:00:14]} Rd2 {[%emt 0:00:03]} 35. Qb3 {[%emt 0:02:31]} Rxb2+ {[%emt 0:00:18]} 36. Qxb2 {[%emt 0:00:25]} Qe1+ {[%emt 0:00:06]} 0-1

[Event "World Senior chT-65 2019"]
[Site "Rhodes"]
[Date "2019.04.21"]
[Round "6.21"]
[White "Opl, Klaus"]
[Black "Bellin, Robert"]
[Result "1-0"]
[ECO "A93"]
[WhiteElo "2188"]
[BlackElo "2315"]
[Annotator "NA"]
[PlyCount "79"]
[EventDate "2019.04.16"]
[EventType "team-tourn"]
[EventCountry "GRE"]
[SourceTitle "playchess.com"]
[Source "ChessBase"]
[SourceQuality "1"]
[WhiteTeam "Austria"]
[BlackTeam "England"]
[WhiteTeamCountry "AUT"]
[BlackTeamCountry "ENG"]
[TimeControl "40/5400+30:1800+30"]

1. d4 {[%emt 0:00:00]} f5 {[%emt 0:00:00]} 2. Nf3 {[%emt 0:00:24]} Nf6 {[%emt 0:00:26]} 3. g3 {[%emt 0:00:21]} e6 {[%emt 0:00:06]} 4. Bg2 {[%emt 0:00:21]} Be7 {[%emt 0:00:39]} 5. O-O {[%emt 0:00:32]} O-O {[%emt 0:00:05]} 6. c4 {[%emt 0:00:21]} d5 {[%emt 0:01:14]} 7. b3 {[%emt 0:00:13]} Nc6 {[%emt 0:00:07]} 8. Ba3 {[%emt 0:00:44]} Bxa3 {[%emt 0:09:48]} 9. Nxa3 {[%emt 0:00:23]} Qe7 {[%emt 0:00:06]} 10. Nc2 {[%emt 0:02:35]} Bd7 {[%emt 0:03:11]} 11. Rb1 {[%emt 0:05:51]} a5 {[%emt 0:03:26]} 12. Nce1 {[%emt 0:02:08]} Rad8 {[%emt 0:10:55]} 13. cxd5 {[%emt 0:09:27]} exd5 {[%emt 0:00:54]} 14. Nd3 {[%emt 0:07:29]} Nb4 {[%emt 0:03:31]} 15. Nde5 {[%emt 0:03:27]} Ne4 {[%emt 0:08:58]} 16. Qc1 {[%emt 0:03:53]} Be8 {[%emt 0:03:44]} 17. Qb2 {[%emt 0:01:42]} f4 {[%emt 0:03:06]} 18. a3 {[%emt 0:03:48]} Na6 {[%emt 0:04:08]} 19. Nd3 {[%emt 0:05:41]} fxg3 {[%emt 0:00:17]} 20. hxg3 {[%emt 0:00:09]} c6 {[%emt 0:08:39]} 21. Rbc1 {[%emt 0:04:03]} Nc7 {[%emt 0:01:17]} 22. Nfe5 {[%emt 0:02:50]} Nb5 {[%emt 0:05:36]} 23. a4 {[%emt 0:02:38]} Nbd6 {[%emt 0:00:09]} 24. b4 {[%emt 0:00:23]} axb4 {[%emt 0:03:44]} 25. Qxb4 {[%emt 0:00:16]} Qg5 {[%emt 0:14:07]} 26. Nf4 {[%emt 0:06:24]} Qh6 {[%emt 0:03:18]} 27. a5 {[%emt 0:01:25]} Ra8 {[%emt 0:03:01]} 28. Ra1 {[%emt 0:01:37]} Bh5 {[%emt 0:03:36]} 29. Ra2 {[%emt 0:02:25]} Rf6 {[%emt 0:03:20]} 30. e3 {[%emt 0:05:49]} g5 {[%emt 0:01:09]} 31. Nfd3 {[%emt 0:02:48]} g4 {[%emt 0:00:14]} 32. a6 {[%emt 0:03:13]} bxa6 {[%emt 0:00:47]} 33. Nxc6 {[%emt 0:01:18]} Bf7 {[%emt 0:00:27]} 34. Nce5 {[%emt 0:01:36]} Qg7 {[%emt 0:01:16]} 35. Nf4 {[%emt 0:00:54]} h5 {[%emt 0:00:19]} 36. Rc1 {[%emt 0:01:35]} Nb5 {[%emt 0:01:38]} 37. Qb3 {[%emt 0:04:56]} h4 {[%emt 0:00:40]} 38. Nxf7 {[%emt 0:00:24]} Qxf7 {[%emt 0:00:01]} 39. Qxd5 {[%emt 0:00:35]} Rxf4 {[%emt 0:00:54]} 40. Qxa8+ {[%emt 0:00:00]} 1-0

[Event "World Senior chT-65 2019"]
[Site "Rhodes"]
[Date "2019.04.21"]
[Round "6.22"]
[White "Povah, Nigel E"]
[Black "Woeber, Friedrich"]
[Result "1-0"]
[ECO "B13"]
[WhiteElo "2319"]
[BlackElo "2114"]
[Annotator "NA"]
[PlyCount "79"]
[EventDate "2019.04.16"]
[EventType "team-tourn"]
[EventCountry "GRE"]
[SourceTitle "playchess.com"]
[Source "ChessBase"]
[SourceQuality "1"]
[WhiteTeam "England"]
[BlackTeam "Austria"]
[WhiteTeamCountry "ENG"]
[BlackTeamCountry "AUT"]
[TimeControl "40/5400+30:1800+30"]

1. d4 {[%emt 0:00:00]} d5 {[%emt 0:00:03]} 2. Bf4 {[%emt 0:00:00]} Nf6 {[%emt 0:00:30]} 3. e3 {[%emt 0:00:00]} c5 {[%emt 0:00:55]} 4. c3 {[%emt 0:00:07]} Nc6 {[%emt 0:01:23]} 5. Nd2 {[%emt 0:00:08]} cxd4 {[%emt 0:08:29]} 6. exd4 {[%emt 0:00:51]} g6 {[%emt 0:01:09]} 7. Ngf3 {[%emt 0:06:25]} Bg7 {[%emt 0:00:34]} 8. Bd3 {[%emt 0:03:01]} O-O {[%emt 0:01:37]} 9. O-O {[%emt 0:04:17]} Nh5 {[%emt 0:03:18]} 10. Bg5 {[%emt 0:13:04]} Qd6 {[%emt 0:10:26]} 11. Bb5 {[%emt 0:08:26]} Bd7 {[%emt 0:07:18]} 12. Re1 {[%emt 0:03:47]} Rae8 {[%emt 0:04:05]} 13. Nb3 {[%emt 0:05:33]} f6 {[%emt 0:04:02]} 14. Be3 {[%emt 0:02:34]} b6 {[%emt 0:05:42]} 15. Qd2 {[%emt 0:09:13]} e5 {[%emt 0:07:38]} 16. dxe5 {[%emt 0:01:33]} Nxe5 {[%emt 0:00:31]} 17. Be2 {[%emt 0:01:40]} Ng4 {[%emt 0:01:42]} 18. Bd4 {[%emt 0:00:59]} Bh6 {[%emt 0:01:54]} 19. Qd1 {[%emt 0:03:56]} Nf4 {[%emt 0:02:54]} 20. Bf1 {[%emt 0:03:38]} Rxe1 {[%emt 0:00:00]} 21. Qxe1 {[%emt 0:00:16]} Re8 {[%emt 0:00:02]} 22. Qd1 {[%emt 0:00:18]} Ne6 {[%emt 0:07:38]} 23. g3 {[%emt 0:02:29]} Nxd4 {[%emt 0:02:05]} 24. Qxd4 {[%emt 0:01:09]} Re4 {[%emt 0:02:43]} 25. Qd1 {[%emt 0:04:05]} Ne5 {[%emt 0:05:45]} 26. Nfd2 {[%emt 0:02:32]} Ra4 {[%emt 0:02:08]} 27. Bg2 {[%emt 0:00:58]} Bg4 {[%emt 0:05:26]} 28. Qf1 {[%emt 0:03:43]} Nc4 {[%emt 0:03:10]} 29. Nxc4 {[%emt 0:03:27]} dxc4 {[%emt 0:03:11]} 30. Nd4 {[%emt 0:00:52]} Qc7 {[%emt 0:02:26]} 31. Bc6 {[%emt 0:00:29]} Ra5 {[%emt 0:01:56]} 32. Qxc4+ {[%emt 0:00:47]} Kh8 {[%emt 0:01:29]} 33. Nb5 {[%emt 0:04:17]} Be2 {[%emt 0:00:01]} 34. Qe6 {[%emt 0:07:03]} Bxb5 {[%emt 0:04:42]} 35. Bxb5 {[%emt 0:02:43]} Qe5 {[%emt 0:00:00]} 36. Qc8+ {[%emt 0:00:11]} Kg7 {[%emt 0:00:00]} 37. Qd7+ {[%emt 0:00:50]} Kh8 {[%emt 0:00:00]} 38. a4 {[%emt 0:01:16]} Bf8 {[%emt 0:00:00]} 39. Rd1 {[%emt 0:00:36]} a6 {[%emt 0:00:20]} 40. Qd8 {[%emt 0:00:00]} 1-0

[Event "World Senior chT-65 2019"]
[Site "Rhodes"]
[Date "2019.04.21"]
[Round "6.23"]
[White "Strobel, Ferdinand"]
[Black "Snape, Ian L"]
[Result "0-1"]
[ECO "A02"]
[WhiteElo "1974"]
[BlackElo "2154"]
[Annotator "NA"]
[PlyCount "94"]
[EventDate "2019.04.16"]
[EventType "team-tourn"]
[EventCountry "GRE"]
[SourceTitle "playchess.com"]
[Source "ChessBase"]
[SourceQuality "1"]
[WhiteTeam "Austria"]
[BlackTeam "England"]
[WhiteTeamCountry "AUT"]
[BlackTeamCountry "ENG"]
[TimeControl "40/5400+30:1800+30"]

1. f4 {[%emt 0:00:00]} g6 {[%emt 0:00:00]} 2. Nf3 {[%emt 0:00:00]} Bg7 {[%emt 0:00:00]} 3. d3 {[%emt 0:00:20]} c5 {[%emt 0:00:29]} 4. c3 {[%emt 0:00:10]} Nc6 {[%emt 0:00:50]} 5. Qc2 {[%emt 0:00:52]} e6 {[%emt 0:01:13]} 6. e4 {[%emt 0:00:21]} Nge7 {[%emt 0:01:02]} 7. Be3 {[%emt 0:02:24]} b6 {[%emt 0:00:52]} 8. Nbd2 {[%emt 0:08:22]} Bb7 {[%emt 0:04:05]} 9. Be2 {[%emt 0:06:58]} Rc8 {[%emt 0:01:24]} 10. O-O {[%emt 0:05:07]} Nd4 {[%emt 0:09:20]} 11. Qd1 {[%emt 0:03:38]} Nxe2+ {[%emt 0:01:35]} 12. Qxe2 {[%emt 0:00:07]} O-O {[%emt 0:01:11]} 13. Rac1 {[%emt 0:04:58]} d6 {[%emt 0:03:36]} 14. Rfd1 {[%emt 0:17:54]} Qd7 {[%emt 0:04:25]} 15. b3 {[%emt 0:05:53]} e5 {[%emt 0:09:22]} 16. d4 {[%emt 0:04:55]} cxd4 {[%emt 0:19:46]} 17. cxd4 {[%emt 0:00:18]} f5 {[%emt 0:06:21]} 18. dxe5 {[%emt 0:05:36]} fxe4 {[%emt 0:01:56]} 19. Ng5 {[%emt 0:06:03]} Rxc1 {[%emt 0:00:40]} 20. Rxc1 {[%emt 0:00:08]} d5 {[%emt 0:00:50]} 21. Rd1 {[%emt 0:12:19]} h6 {[%emt 0:02:36]} 22. Nh3 {[%emt 0:00:29]} Qc8 {[%emt 0:01:57]} 23. Nf1 {[%emt 0:01:32]} Nf5 {[%emt 0:05:06]} 24. Bf2 {[%emt 0:02:36]} Rd8 {[%emt 0:01:52]} 25. Ne3 {[%emt 0:01:25]} Nxe3 {[%emt 0:02:52]} 26. Bxe3 {[%emt 0:01:05]} Qe6 {[%emt 0:01:24]} 27. Nf2 {[%emt 0:02:36]} Rc8 {[%emt 0:00:41]} 28. Bd4 {[%emt 0:01:18]} Rc7 {[%emt 0:02:59]} 29. h3 {[%emt 0:01:09]} Qc8 {[%emt 0:01:28]} 30. Qg4 {[%emt 0:00:29]} Qf5 {[%emt 0:01:05]} 31. Qxf5 {[%emt 0:00:57]} gxf5 {[%emt 0:00:02]} 32. g4 {[%emt 0:00:11]} Bc8 {[%emt 0:01:20]} 33. Rd2 {[%emt 0:00:59]} h5 {[%emt 0:01:00]} 34. g5 {[%emt 0:02:57]} Bf8 {[%emt 0:01:03]} 35. Nd1 {[%emt 0:00:39]} Bb4 {[%emt 0:00:10]} 36. Rf2 {[%emt 0:00:29]} Rc1 {[%emt 0:00:30]} 37. Rf1 {[%emt 0:00:02]} Ba6 {[%emt 0:00:32]} 38. Ne3 {[%emt 0:00:05]} Bxf1 {[%emt 0:00:16]} 39. Nxf1 {[%emt 0:00:01]} Bc5 {[%emt 0:02:10]} 40. Bxc5 {[%emt 0:00:00]} bxc5 {[%emt 0:00:00]} 41. Kf2 {[%emt 0:00:43]} d4 {[%emt 0:00:51]} 42. e6 {[%emt 0:00:12]} Rc2+ {[%emt 0:01:20]} 43. Ke1 {[%emt 0:00:20]} e3 {[%emt 0:03:12]} 44. g6 {[%emt 0:00:07]} Kf8 {[%emt 0:00:07]} 45. Ng3 {[%emt 0:00:11]} d3 {[%emt 0:00:47]} 46. Kf1 {[%emt 0:00:23]} Rc1+ {[%emt 0:01:02]} 47. Kg2 {[%emt 0:00:06]} e2 {[%emt 0:00:28]} 0-1

[Event "World Senior chT-65 2019"]
[Site "Rhodes"]
[Date "2019.04.21"]
[Round "6.24"]
[White "Quinn, John M"]
[Black "Danner, Lambert"]
[Result "1-0"]
[ECO "A87"]
[WhiteElo "2140"]
[BlackElo "2013"]
[Annotator "NA"]
[PlyCount "103"]
[EventDate "2019.04.16"]
[EventType "team-tourn"]
[EventCountry "GRE"]
[SourceTitle "playchess.com"]
[Source "ChessBase"]
[SourceQuality "1"]
[WhiteTeam "England"]
[BlackTeam "Austria"]
[WhiteTeamCountry "ENG"]
[BlackTeamCountry "AUT"]
[TimeControl "40/5400+30:1800+30"]

1. d4 {[%emt 0:00:00]} d6 {[%emt 0:00:00]} 2. Nf3 {[%emt 0:01:17]} f5 {[%emt 0:00:37]} 3. g3 {[%emt 0:00:26]} Nf6 {[%emt 0:00:12]} 4. Bg2 {[%emt 0:00:06]} g6 {[%emt 0:00:34]} 5. O-O {[%emt 0:00:36]} Bg7 {[%emt 0:00:06]} 6. b3 {[%emt 0:00:06]} O-O {[%emt 0:01:58]} 7. Bb2 {[%emt 0:00:49]} c6 {[%emt 0:02:52]} 8. c4 {[%emt 0:01:56]} e5 {[%emt 0:07:29]} 9. dxe5 {[%emt 0:13:44]} Ng4 {[%emt 0:00:07]} 10. Nc3 {[%emt 0:17:26]} Nxe5 {[%emt 0:01:56]} 11. Qd2 {[%emt 0:01:52]} Qe7 {[%emt 0:05:38]} 12. Rad1 {[%emt 0:03:36]} Nf7 {[%emt 0:01:48]} 13. Rfe1 {[%emt 0:07:04]} Na6 {[%emt 0:10:57]} 14. e4 {[%emt 0:04:44]} Qc7 {[%emt 0:00:52]} 15. Nd4 {[%emt 0:03:37]} fxe4 {[%emt 0:04:01]} 16. Nxe4 {[%emt 0:01:44]} Nc5 {[%emt 0:00:19]} 17. Nxc5 {[%emt 0:08:32]} dxc5 {[%emt 0:00:37]} 18. Ne6 {[%emt 0:01:26]} Bxe6 {[%emt 0:00:08]} 19. Bxg7 {[%emt 0:00:11]} Kxg7 {[%emt 0:04:26]} 20. Rxe6 {[%emt 0:00:08]} Rad8 {[%emt 0:01:18]} 21. Qc3+ {[%emt 0:01:30]} Kg8 {[%emt 0:00:10]} 22. Rde1 {[%emt 0:01:38]} Rd7 {[%emt 0:03:15]} 23. h4 {[%emt 0:02:40]} Nd6 {[%emt 0:03:33]} 24. h5 {[%emt 0:02:31]} Rg7 {[%emt 0:00:56]} 25. Qe5 {[%emt 0:02:22]} Nf5 {[%emt 0:03:05]} 26. hxg6 {[%emt 0:01:46]} hxg6 {[%emt 0:01:36]} 27. Qxc7 {[%emt 0:01:56]} Rxc7 {[%emt 0:00:43]} 28. Rxg6+ {[%emt 0:00:05]} Kf7 {[%emt 0:00:34]} 29. Rge6 {[%emt 0:01:56]} Nd4 {[%emt 0:00:54]} 30. R6e5 {[%emt 0:00:32]} b6 {[%emt 0:00:27]} 31. R1e4 {[%emt 0:01:42]} Kf6 {[%emt 0:01:21]} 32. Rh5 {[%emt 0:01:11]} Kg6 {[%emt 0:01:55]} 33. Rhe5 {[%emt 0:04:42]} Kf6 {[%emt 0:00:23]} 34. Kf1 {[%emt 0:04:21]} Rff7 {[%emt 0:01:15]} 35. Re8 {[%emt 0:01:13]} Kg7 {[%emt 0:06:39]} 36. Rg4+ {[%emt 0:01:02]} Kf6 {[%emt 0:00:22]} 37. Be4 {[%emt 0:03:16]} Rfe7 {[%emt 0:03:53]} 38. Rh8 {[%emt 0:02:02]} Rf7 {[%emt 0:04:04]} 39. Rf4+ {[%emt 0:02:35]} Ke5 {[%emt 0:01:48]} 40. Rh5+ {[%emt 0:00:00]} Ke6 {[%emt 0:00:00]} 41. Rxf7 {[%emt 0:00:57]} Rxf7 {[%emt 0:01:09]} 42. f4 {[%emt 0:00:04]} Kd7 {[%emt 0:01:28]} 43. Kf2 {[%emt 0:00:15]} Re7 {[%emt 0:00:27]} 44. Rh7 {[%emt 0:01:03]} b5 {[%emt 0:01:22]} 45. Rxe7+ {[%emt 0:00:47]} Kxe7 {[%emt 0:00:07]} 46. g4 {[%emt 0:00:13]} a5 {[%emt 0:00:12]} 47. Ke3 {[%emt 0:06:00]} a4 {[%emt 0:00:21]} 48. bxa4 {[%emt 0:03:08]} bxa4 {[%emt 0:00:31]} 49. a3 {[%emt 0:01:21]} Kd6 {[%emt 0:00:32]} 50. g5 {[%emt 0:00:59]} Ke6 {[%emt 0:00:30]} 51. Bd3 {[%emt 0:01:16]} Kf7 {[%emt 0:02:26]} 52. f5 {[%emt 0:00:57]} 1-0

[Event "World Senior chT-65 2019"]
[Site "Rhodes"]
[Date "2019.04.21"]
[Round "6.25"]
[White "James, Geoffrey H"]
[Black "Pedersen, Svend"]
[Result "1/2-1/2"]
[ECO "A25"]
[WhiteElo "2144"]
[BlackElo "2178"]
[Annotator "NA"]
[PlyCount "76"]
[EventDate "2019.04.16"]
[EventType "team-tourn"]
[EventCountry "GRE"]
[SourceTitle "playchess.com"]
[Source "ChessBase"]
[SourceQuality "1"]
[WhiteTeam "England"]
[BlackTeam "Denmark"]
[WhiteTeamCountry "ENG"]
[BlackTeamCountry "DEN"]
[TimeControl "40/5400+30:1800+30"]

1. c4 {[%emt 0:00:00]} e5 {[%emt 0:00:00]} 2. g3 {[%emt 0:00:00]} Nc6 {[%emt 0:00:24]} 3. Bg2 {[%emt 0:00:01]} g6 {[%emt 0:00:08]} 4. d3 {[%emt 0:00:33]} Bg7 {[%emt 0:00:05]} 5. Nc3 {[%emt 0:00:16]} d6 {[%emt 0:00:21]} 6. e3 {[%emt 0:01:03]} Nh6 {[%emt 0:00:29]} 7. Nge2 {[%emt 0:01:14]} O-O {[%emt 0:00:45]} 8. Rb1 {[%emt 0:01:05]} Be6 {[%emt 0:00:59]} 9. b4 {[%emt 0:04:00]} Qd7 {[%emt 0:01:05]} 10. h3 {[%emt 0:05:00]} Rae8 {[%emt 0:05:58]} 11. b5 {[%emt 0:02:35]} Nd8 {[%emt 0:00:09]} 12. Qa4 {[%emt 0:03:44]} f5 {[%emt 0:05:57]} 13. f4 {[%emt 0:05:30]} a6 {[%emt 0:18:56]} 14. Nd5 {[%emt 0:11:39]} axb5 {[%emt 0:00:00]} 15. cxb5 {[%emt 0:00:10]} e4 {[%emt 0:00:00]} 16. Nb4 {[%emt 0:05:19]} exd3 {[%emt 0:03:43]} 17. Nxd3 {[%emt 0:00:09]} Qf7 {[%emt 0:00:15]} 18. Nb4 {[%emt 0:02:10]} Bc4 {[%emt 0:03:53]} 19. Bf3 {[%emt 0:02:24]} Ne6 {[%emt 0:03:47]} 20. Qc2 {[%emt 0:09:45]} Nc5 {[%emt 0:05:19]} 21. Qxc4 {[%emt 0:02:22]} Qxc4 {[%emt 0:00:08]} 22. Bd5+ {[%emt 0:00:06]} Qxd5 {[%emt 0:00:05]} 23. Nxd5 {[%emt 0:00:09]} c6 {[%emt 0:04:16]} 24. Ndc3 {[%emt 0:00:57]} Nd3+ {[%emt 0:04:57]} 25. Kd2 {[%emt 0:01:00]} Nf2 {[%emt 0:00:43]} 26. Rh2 {[%emt 0:01:24]} Ne4+ {[%emt 0:00:05]} 27. Nxe4 {[%emt 0:00:16]} Rxe4 {[%emt 0:00:18]} 28. bxc6 {[%emt 0:01:52]} bxc6 {[%emt 0:00:02]} 29. Rb3 {[%emt 0:04:34]} Ra8 {[%emt 0:02:26]} 30. Nc3 {[%emt 0:00:59]} Rc4 {[%emt 0:00:32]} 31. Kd3 {[%emt 0:00:09]} d5 {[%emt 0:00:24]} 32. Rc2 {[%emt 0:03:28]} Nf7 {[%emt 0:02:54]} 33. Ra3 {[%emt 0:01:24]} Rb8 {[%emt 0:10:31]} 34. Rb3 {[%emt 0:00:39]} Rxb3 {[%emt 0:03:08]} 35. axb3 {[%emt 0:00:08]} Rb4 {[%emt 0:00:11]} 36. Ra2 {[%emt 0:00:16]} Nd6 {[%emt 0:06:34]} 37. Kc2 {[%emt 0:01:15]} Rb7 {[%emt 0:02:46]} 38. Ra6 {[%emt 0:02:19]} Rc7 {[%emt 0:13:50]} 1/2-1/2

[Event "World Senior chT-65 2019"]
[Site "Rhodes"]
[Date "2019.04.21"]
[Round "6.26"]
[White "Holst, Per"]
[Black "Bray, David"]
[Result "1-0"]
[ECO "D30"]
[WhiteElo "2150"]
[BlackElo "2121"]
[Annotator "NA"]
[PlyCount "63"]
[EventDate "2019.04.16"]
[EventType "team-tourn"]
[EventCountry "GRE"]
[SourceTitle "playchess.com"]
[Source "ChessBase"]
[SourceQuality "1"]
[WhiteTeam "Denmark"]
[BlackTeam "England"]
[WhiteTeamCountry "DEN"]
[BlackTeamCountry "ENG"]
[TimeControl "40/5400+30:1800+30"]

1. d4 {[%emt 0:00:00]} Nf6 {[%emt 0:00:00]} 2. c4 {[%emt 0:00:00]} e6 {[%emt 0:00:00]} 3. Nf3 {[%emt 0:00:00]} d5 {[%emt 0:00:00]} 4. g3 {[%emt 0:00:33]} c6 {[%emt 0:03:01]} 5. Qc2 {[%emt 0:00:16]} Bb4+ {[%emt 0:03:39]} 6. Nbd2 {[%emt 0:00:16]} O-O {[%emt 0:01:25]} 7. Bg2 {[%emt 0:00:07]} Nbd7 {[%emt 0:02:13]} 8. O-O {[%emt 0:00:57]} Qe7 {[%emt 0:06:36]} 9. e4 {[%emt 0:07:24]} dxe4 {[%emt 0:15:45]} 10. Nxe4 {[%emt 0:04:27]} Nxe4 {[%emt 0:01:09]} 11. Qxe4 {[%emt 0:00:09]} Nf6 {[%emt 0:00:13]} 12. Qe2 {[%emt 0:01:30]} Bd7 {[%emt 0:05:34]} 13. Bf4 {[%emt 0:02:49]} Bd6 {[%emt 0:08:39]} 14. Ne5 {[%emt 0:00:48]} Rad8 {[%emt 0:03:37]} 15. Rfd1 {[%emt 0:05:25]} Bc8 {[%emt 0:04:14]} 16. a3 {[%emt 0:02:11]} c5 {[%emt 0:05:33]} 17. dxc5 {[%emt 0:06:36]} Bxc5 {[%emt 0:00:06]} 18. b4 {[%emt 0:01:03]} Bb6 {[%emt 0:01:13]} 19. Be3 {[%emt 0:05:53]} Bxe3 {[%emt 0:10:54]} 20. Qxe3 {[%emt 0:00:13]} a5 {[%emt 0:02:24]} 21. Qb6 {[%emt 0:05:11]} axb4 {[%emt 0:02:33]} 22. axb4 {[%emt 0:00:22]} Nd7 {[%emt 0:03:06]} 23. Qc7 {[%emt 0:03:18]} Rfe8 {[%emt 0:09:20]} 24. Bxb7 {[%emt 0:11:07]} Qf6 {[%emt 0:04:14]} 25. Ng4 {[%emt 0:12:54]} Qg5 {[%emt 0:02:32]} 26. Bf3 {[%emt 0:04:48]} Qf5 {[%emt 0:02:03]} 27. Kg2 {[%emt 0:02:56]} e5 {[%emt 0:01:39]} 28. Ne3 {[%emt 0:02:09]} Qg5 {[%emt 0:00:37]} 29. h4 {[%emt 0:00:43]} Qf6 {[%emt 0:01:02]} 30. Rd6 {[%emt 0:01:56]} Qe7 {[%emt 0:00:12]} 31. Bc6 {[%emt 0:02:19]} Kf8 {[%emt 0:01:10]} 32. Nd5 {[%emt 0:00:35]} 1-0

[Event "World Senior chT-65 2019"]
[Site "Rhodes"]
[Date "2019.04.21"]
[Round "6.27"]
[White "Stokes, Michael"]
[Black "Hvenekilde, Jorgen"]
[Result "1/2-1/2"]
[ECO "C41"]
[WhiteElo "2092"]
[BlackElo "2046"]
[Annotator "NA"]
[PlyCount "83"]
[EventDate "2019.04.16"]
[EventType "team-tourn"]
[EventCountry "GRE"]
[SourceTitle "playchess.com"]
[Source "ChessBase"]
[SourceQuality "1"]
[WhiteTeam "England"]
[BlackTeam "Denmark"]
[WhiteTeamCountry "ENG"]
[BlackTeamCountry "DEN"]
[TimeControl "40/5400+30:1800+30"]

1. e4 {[%emt 0:00:00]} e5 {[%emt 0:00:00]} 2. Nf3 {[%emt 0:00:00]} d6 {[%emt 0:00:23]} 3. d4 {[%emt 0:00:00]} exd4 {[%emt 0:01:26]} 4. Nxd4 {[%emt 0:00:00]} g6 {[%emt 0:00:09]} 5. Nc3 {[%emt 0:01:20]} Bg7 {[%emt 0:00:08]} 6. Be3 {[%emt 0:00:28]} Nf6 {[%emt 0:00:19]} 7. Be2 {[%emt 0:00:24]} O-O {[%emt 0:00:16]} 8. Qd2 {[%emt 0:02:22]} Re8 {[%emt 0:00:27]} 9. f3 {[%emt 0:00:18]} a6 {[%emt 0:01:04]} 10. a4 {[%emt 0:01:38]} b6 {[%emt 0:05:04]} 11. Bg5 {[%emt 0:10:12]} Bb7 {[%emt 0:01:39]} 12. Rd1 {[%emt 0:09:15]} Nbd7 {[%emt 0:08:57]} 13. O-O {[%emt 0:01:38]} Qe7 {[%emt 0:08:07]} 14. Bc4 {[%emt 0:06:07]} Qf8 {[%emt 0:02:01]} 15. Nde2 {[%emt 0:05:24]} h6 {[%emt 0:04:33]} 16. Be3 {[%emt 0:02:22]} Rad8 {[%emt 0:07:49]} 17. Nf4 {[%emt 0:04:56]} Kh7 {[%emt 0:06:33]} 18. Qf2 {[%emt 0:05:04]} Ne5 {[%emt 0:04:43]} 19. Bb3 {[%emt 0:03:17]} Qe7 {[%emt 0:14:12]} 20. h3 {[%emt 0:06:07]} Qd7 {[%emt 0:11:30]} 21. Rd2 {[%emt 0:08:36]} b5 {[%emt 0:00:24]} 22. Rfd1 {[%emt 0:03:02]} Bc6 {[%emt 0:03:48]} 23. axb5 {[%emt 0:00:55]} axb5 {[%emt 0:00:19]} 24. Nfd5 {[%emt 0:05:46]} Nc4 {[%emt 0:02:38]} 25. Bxc4 {[%emt 0:01:33]} bxc4 {[%emt 0:00:11]} 26. Bxh6 {[%emt 0:04:14]} Kxh6 {[%emt 0:01:46]} 27. Qh4+ {[%emt 0:01:11]} Nh5 {[%emt 0:00:12]} 28. g4 {[%emt 0:01:13]} Bxd5 {[%emt 0:00:33]} 29. Rxd5 {[%emt 0:03:52]} Be5 {[%emt 0:03:33]} 30. gxh5 {[%emt 0:02:41]} g5 {[%emt 0:00:24]} 31. Qg4 {[%emt 0:00:26]} Qxg4+ {[%emt 0:02:12]} 32. hxg4 {[%emt 0:00:07]} Rb8 {[%emt 0:00:25]} 33. Rb5 {[%emt 0:01:44]} c6 {[%emt 0:00:26]} 34. Rxb8 {[%emt 0:00:33]} Rxb8 {[%emt 0:00:05]} 35. Na4 {[%emt 0:05:31]} Kg7 {[%emt 0:01:51]} 36. Rb1 {[%emt 0:01:15]} Rb4 {[%emt 0:01:14]} 37. b3 {[%emt 0:00:14]} cxb3 {[%emt 0:00:16]} 38. cxb3 {[%emt 0:00:12]} c5 {[%emt 0:00:45]} 39. Rc1 {[%emt 0:04:03]} Rxb3 {[%emt 0:00:13]} 40. Kg2 {[%emt 0:00:00]} Bd4 {[%emt 0:00:00]} 41. Kg3 {[%emt 0:01:50]} Be5+ {[%emt 0:06:20]} 42. Kg2 {[%emt 0:00:13]} 1/2-1/2